bitfinex-derivatives/quotes_BTCF0:USTF0_20250505
["timestamp","ask_amount","ask_price","bid_price","bid_amount"]
[1746411551791,0.05,94351.0,94350.0,0.2119651]
[1746411551986,0.15,94351.0,94350.0,0.2119651]
[1746411552288,0.27,94351.0,94350.0,0.2119651]
[1746411552482,0.17,94351.0,94350.0,0.2119651]
[1746411552690,0.12,94351.0,94350.0,0.2119651]
[1746411553481,0.124,94351.0,94350.0,0.2139651]
[1746411554290,0.124,94351.0,94350.0,0.5747651]
[1746411554982,0.124,94351.0,94350.0,0.2139651]
[1746411556190,0.12,94351.0,94350.0,0.1979651]
[1746411557282,0.12211974,94351.0,94350.0,0.1979651]
[1746411559295,0.22211974,94351.0,94341.0,0.3608]
[1746411559493,0.2119689,94349.0,94348.0,0.2119703]
[1746411559694,0.211972,94348.0,94347.0,0.2119705]
[1746411559899,0.264472,94348.0,94347.0,0.2119705]
[1746411560091,0.2119785,94345.0,94344.0,0.2119795]
[1746411560281,0.3844725,94348.0,94347.0,0.2119728]
[1746411560486,0.4844725,94348.0,94347.0,0.2119728]
[1746411560887,0.2725,94348.0,94332.0,0.3608]
[1746411561195,0.2119942,94338.0,94334.0,0.0530004]
[1746411561491,0.16052005,94337.0,94334.0,0.0530004]
[1746411561690,0.18040608,94337.0,94332.0,0.3608]
[1746411561896,0.3120001,94335.0,94332.0,0.3608]
[1746411562090,0.10892012,94334.0,94333.0,0.2120042]
[1746411562597,0.20892012,94334.0,94333.0,0.2120042]
[1746411562788,0.20892012,94334.0,94332.0,0.3608]
[1746411563095,0.32892012,94334.0,94332.0,0.3608]
[1746411563296,0.22892012,94334.0,94333.0,0.2120042]
[1746411564197,0.12212012,94334.0,94333.0,0.2120042]
[1746411564399,0.12212012,94334.0,94333.0,0.3664042]
[1746411564699,0.12212012,94334.0,94333.0,0.38828427]
[1746411564998,0.12212012,94334.0,94333.0,1.88828427]
[1746411565496,0.12212012,94334.0,94333.0,1.8664042]
[1746411566082,0.2120042,94333.0,94332.0,0.3608]
[1746411566290,0.3137042,94333.0,94332.0,0.3608]
[1746411566483,0.3137042,94333.0,94332.0,0.5728065]
[1746411566687,0.1017,94333.0,94332.0,0.5728065]
[1746411567091,0.2217,94333.0,94332.0,0.5728065]
[1746411572295,0.4337042,94333.0,94332.0,0.5728065]
[1746411572995,0.944516,94333.0,94314.0,0.3608]
[1746411573190,0.944516,94333.0,94318.0,0.2120363]
[1746411573191,0.212038,94319.0,94318.0,0.2120363]
[1746411573593,0.1569,94321.0,94319.0,0.2120345]
[1746411573795,0.0517,94318.0,94317.0,0.2120402]
[1746411574006,0.0517,94318.0,94317.0,0.2659402]
[1746411574299,0.1717,94318.0,94317.0,0.2659402]
[1746411575001,0.23392095,94318.0,94317.0,0.2659402]
[1746411577597,0.17962095,94318.0,94317.0,0.2659402]
[1746411577798,0.12792095,94318.0,94317.0,0.3182402]
[1746411579706,0.12792095,94318.0,94317.0,1.8182402]
[1746411584411,0.0529955,94343.0,94337.0,0.2119952]
[1746411584712,0.23146281,94339.0,94338.0,0.211993]
[1746411584909,0.2119909,94339.0,94338.0,0.211993]
[1746411585106,0.12790019,94339.0,94338.0,0.211993]
[1746411585812,0.12790019,94339.0,94338.0,0.319093]
[1746411587709,0.12790019,94339.0,94338.0,0.679893]
[1746411588008,0.0015,94345.0,94344.0,0.2119795]
[1746411588210,0.12932072,94345.0,94344.0,0.2119795]
[1746411588510,0.1215,94345.0,94344.0,0.2119795]
[1746411588910,0.1215,94345.0,94344.0,0.3690795]
[1746411590120,0.1285,94345.0,94344.0,0.3710795]
[1746411590612,0.1285,94345.0,94344.0,1.8710795]
[1746411591010,0.0523,94355.0,94354.0,0.211957]
[1746411591311,0.0523,94355.0,94354.0,0.572757]
[1746411592109,0.1723,94355.0,94354.0,0.572757]
[1746411592309,0.1723,94355.0,94354.0,0.573757]
[1746411593210,0.23256975,94355.0,94354.0,0.3618]
[1746411593412,0.28356975,94355.0,94354.0,0.573757]
[1746411594912,0.28356975,94355.0,94354.0,0.212957]
[1746411596118,0.28356975,94355.0,94354.0,0.211957]
[1746411596323,0.28356975,94355.0,94354.0,0.212957]
[1746411596614,0.28356975,94355.0,94354.0,0.001]
[1746411596818,0.49552455,94355.0,94354.0,0.212957]
[1746411597122,0.85247268,94355.0,94339.0,0.0529976]
[1746411597313,0.1,94353.0,94344.0,0.0529947]
[1746411597520,0.32258142,94352.0,94345.0,0.0529942]
[1746411597717,0.21408414,94351.0,94348.0,0.0529925]
[1746411598028,0.00211976,94350.0,94349.0,0.21383908]
[1746411598320,0.10941976,94350.0,94349.0,0.21383908]
[1746411598913,0.10741976,94350.0,94349.0,0.21383908]
[1746411599218,0.22741976,94350.0,94349.0,0.21383908]
[1746411599420,0.22941976,94350.0,94349.0,0.21583908]
[1746411605716,0.54138576,94350.0,94349.0,0.00387078]
[1746411605915,0.1529943,94345.0,94328.0,0.1077]
[1746411606121,0.3170806,94344.0,94343.0,0.2119818]
[1746411606525,0.1051,94344.0,94339.0,0.0529976]
[1746411606716,0.0511,94343.0,94342.0,0.2119838]
[1746411606912,0.07048785,94343.0,94342.0,0.2119838]
[1746411607124,0.29558785,94343.0,94340.0,0.2119875]
[1746411607325,0.2119852,94342.0,94341.0,0.211984]
[1746411607817,0.19048785,94343.0,94342.0,0.211984]
[1746411608823,0.19648785,94343.0,94342.0,0.213984]
[1746411609128,0.40846965,94343.0,94342.0,0.213984]
[1746411609422,0.19648785,94343.0,94342.0,0.213984]
[1746411609614,0.40846965,94343.0,94342.0,0.002]
[1746411609820,0.19648785,94343.0,94342.0,0.213984]
[1746411610720,0.19648785,94343.0,94342.0,0.002]
[1746411610721,0.40846965,94343.0,94342.0,0.002]
[1746411611026,0.19648785,94343.0,94342.0,0.574784]
[1746411611621,0.126,94343.0,94342.0,0.574784]
[1746411612227,0.126,94343.0,94342.0,2.074784]
[1746411612428,0.126,94343.0,94342.0,2.127984]
[1746411612729,0.126,94343.0,94342.0,2.183884]
[1746411613029,0.12622369,94343.0,94342.0,2.182884]
[1746411614434,0.12022369,94343.0,94342.0,2.183884]
[1746411614635,0.12622369,94343.0,94342.0,2.074784]
[1746411614929,0.12622369,94343.0,94342.0,0.574784]
[1746411615521,0.12022369,94343.0,94342.0,0.572784]
[1746411615721,0.12622369,94343.0,94342.0,0.574784]
[1746411616325,0.39300549,94343.0,94342.0,0.574784]
[1746411616726,0.18102369,94343.0,94342.0,0.574784]
[1746411616932,0.18102369,94343.0,94342.0,0.3628]
[1746411617124,0.39300549,94343.0,94342.0,0.002]
[1746411617319,0.2120082,94332.0,94327.0,0.0015902]
[1746411617523,0.0548,94331.0,94330.0,0.212011]
[1746411618224,0.1728,94331.0,94330.0,0.212011]
[1746411618437,0.12,94331.0,94330.0,0.572811]
[1746411618832,0.126,94331.0,94330.0,0.573811]
[1746411619138,0.126,94331.0,94330.0,0.679511]
[1746411621327,0.12,94331.0,94330.0,0.654511]
[1746411623132,0.12,94331.0,94330.0,0.760523]
[1746411624234,0.00022369,94343.0,94342.0,0.211984]
[1746411624431,0.00022369,94343.0,94342.0,0.572784]
[1746411625129,0.12022369,94343.0,94342.0,0.685184]
[1746411625727,0.12022369,94343.0,94342.0,0.629284]
[1746411626427,0.12022369,94343.0,94342.0,0.572784]
[1746411627238,0.69332369,94343.0,94334.0,0.0530004]
[1746411627431,0.17972369,94343.0,94342.0,0.211984]
[1746411629038,0.12022369,94343.0,94342.0,0.211984]
[1746411629237,0.12022369,94343.0,94342.0,0.269284]
[1746411630635,0.12022369,94343.0,94342.0,0.326484]
[1746411631038,0.12022369,94343.0,94342.0,1.826484]
[1746411632435,0.12022369,94343.0,94342.0,2.187284]
[1746411636844,0.11922369,94343.0,94342.0,2.187284]
[1746411638244,0.11922369,94343.0,94342.0,2.072784]
[1746411638932,0.11922369,94343.0,94342.0,0.572784]
[1746411641047,0.11922369,94343.0,94342.0,0.631484]
[1746411641639,0.11922369,94343.0,94342.0,2.131484]
[1746411641844,0.11922369,94343.0,94342.0,2.23748]
[1746411642045,0.00011976,94350.0,94349.0,0.2119683]
[1746411642244,0.00011976,94350.0,94349.0,0.5727683]
[1746411642734,0.00011976,94350.0,94349.0,2.1870683]
[1746411643136,0.12011976,94350.0,94349.0,2.1870683]
[1746411644243,0.00211974,94351.0,94350.0,0.211966]
[1746411644456,4e-08,94351.0,94350.0,0.391834]
[1746411644647,6e-08,94352.0,94351.0,0.2119638]
[1746411644945,6e-08,94352.0,94351.0,1.9275518]
[1746411647440,0.00211967,94354.0,94353.0,0.2119593]
[1746411647856,0.00211967,94354.0,94353.0,0.4323433]
[1746411648048,0.00211967,94354.0,94353.0,1.9323433]
[1746411648248,0.12211967,94354.0,94353.0,1.9323433]
[1746411649252,0.12211967,94354.0,94353.0,2.20812484]
[1746411649650,0.12,94354.0,94353.0,2.20812484]
[1746411649953,0.08708007,94354.0,94353.0,2.20812484]
[1746411650855,0.04083437,94354.0,94353.0,2.20812484]
[1746411651058,7e-08,94354.0,94353.0,2.20812484]
[1746411651651,0.0194974,94354.0,94353.0,2.20812484]
[1746411651851,7e-08,94355.0,94354.0,0.211957]
[1746411652052,7e-08,94356.0,94354.0,0.466784]
[1746411652252,7e-08,94356.0,94355.0,0.2119548]
[1746411652453,7e-08,94356.0,94355.0,0.3179388]
[1746411652753,7e-08,94356.0,94355.0,0.4338388]
[1746411653154,0.12000007,94356.0,94355.0,0.4338388]
[1746411654461,0.08759737,94356.0,94355.0,0.4338388]
[1746411654656,0.05536517,94356.0,94355.0,0.2119548]
[1746411655054,0.05536517,94356.0,94355.0,0.2724548]
[1746411657052,0.05436517,94356.0,94355.0,0.2724548]
[1746411659166,0.01000957,94356.0,94355.0,0.2724548]
[1746411659464,7e-08,94356.0,94355.0,0.3852548]
[1746411661765,0.211893,94383.0,94355.0,0.3852548]
[1746411661766,0.001,94386.0,94379.0,0.2119009]
[1746411662065,0.061,94396.0,94395.0,0.211865]
[1746411662263,0.061,94396.0,94395.0,2.45160102]
[1746411663261,0.181,94396.0,94395.0,2.45160102]
[1746411663767,0.181,94396.0,94395.0,2.433465]
[1746411664566,0.18,94396.0,94395.0,2.433465]
[1746411666975,0.12,94396.0,94395.0,2.433465]
[1746411668971,0.12,94396.0,94395.0,2.507145]
[1746411674375,0.12,94396.0,94395.0,2.566945]
[1746411677579,0.11996,94396.0,94395.0,2.566945]
[1746411677773,0.11996,94396.0,94395.0,2.493265]
[1746411677973,0.11996,94396.0,94395.0,2.433465]
[1746411678776,0.11996,94396.0,94395.0,0.933465]
[1746411679177,0.11996,94396.0,94395.0,0.994065]
[1746411682367,0.11996,94396.0,94395.0,0.3608]
[1746411682774,0.11996,94396.0,94395.0,0.572665]
[1746411683471,0.4377587,94396.0,94395.0,0.3608]
[1746411683977,0.586696,94396.0,94395.0,0.211865]
[1746411684285,0.2118836,94387.0,94384.0,0.2118879]
[1746411684580,0.211887,94386.0,94384.0,0.2118879]
[1746411684769,0.211887,94386.0,94385.0,0.2118874]
[1746411685169,0.331887,94386.0,94385.0,0.2118874]
[1746411685577,0.2119121,94374.0,94373.0,0.3608]
[1746411685777,0.0529731,94383.0,94373.0,0.3608]
[1746411685983,0.2119346,94364.0,94362.0,0.00158961]
[1746411686275,0.12,94364.0,94363.0,2.0727368]
[1746411686481,0.12,94364.0,94363.0,0.5727368]
[1746411687474,0.12,94364.0,94363.0,0.3608]
[1746411687682,0.2119368,94363.0,94362.0,0.00158961]
[1746411687880,0.3271368,94363.0,94362.0,0.21352871]
[1746411688082,0.1152,94363.0,94362.0,0.21352871]
[1746411688382,0.2352,94363.0,94362.0,0.21352871]
[1746411694188,0.1766,94363.0,94362.0,0.21352871]
[1746411694896,0.12,94363.0,94362.0,0.33312871]
[1746411695094,0.0876935,94363.0,94362.0,0.68910471]
[1746411695392,0.2674695,94393.0,94392.0,0.2118717]
[1746411695582,0.2679695,94393.0,94392.0,0.2118717]
[1746411696284,0.0601,94397.0,94396.0,0.2118627]
[1746411697189,0.1801,94397.0,94396.0,0.2118627]
[1746411697586,0.12,94397.0,94396.0,0.2118627]
[1746411698681,0.12,94397.0,94396.0,0.2012327]
[1746411705090,0.12,94397.0,94380.0,0.3608]
[1746411705295,0.3608,94391.0,94380.0,0.3608]
[1746411705495,0.2118931,94383.0,94378.0,0.1111753]
[1746411705697,0.2673943,94382.0,94380.0,0.2118976]
[1746411705897,0.2119031,94378.0,94375.0,0.0573]
[1746411706194,0.12,94378.0,94371.0,0.0529793]
[1746411706384,0.0555,94377.0,94376.0,0.2119076]
[1746411707300,0.3874054,94377.0,94376.0,0.2119076]
[1746411707503,0.1755,94377.0,94376.0,0.2119076]
[1746411709496,0.1755,94377.0,94376.0,0.2679076]
[1746411710596,0.1755,94377.0,94346.0,0.0529936]
[1746411710797,0.0529811,94369.0,94361.0,0.052985]
[1746411710995,0.0529793,94372.0,94354.0,1.57344]
[1746411710996,0.0529793,94372.0,94368.0,0.2119252]
[1746411711191,0.2119189,94371.0,94366.0,0.0529824]
[1746411711504,0.2119241,94370.0,94369.0,0.2119225]
[1746411712101,0.3319241,94370.0,94369.0,0.2119225]
[1746411712494,0.4528241,94370.0,94369.0,0.2729225]
[1746411712694,0.4528241,94370.0,94369.0,0.3315225]
[1746411715597,0.4528241,94370.0,94369.0,0.1196]
[1746411715799,0.2938803,94370.0,94366.0,0.3608]
[1746411716005,0.2409,94370.0,94366.0,0.3608]
[1746411716198,0.2409,94370.0,94369.0,0.2119234]
[1746411717203,0.1812,94370.0,94369.0,0.2119234]
[1746411718203,0.2119256,94368.0,94367.0,0.3227271]
[1746411718403,0.0579,94369.0,94368.0,0.2119256]
[1746411718908,0.1138,94369.0,94368.0,0.3264256]
[1746411719206,0.1759,94369.0,94368.0,0.3264256]
[1746411720507,0.1759,94369.0,94368.0,0.6872256]
[1746411721306,0.12,94369.0,94368.0,0.6872256]
[1746411722501,0.3319234,94369.0,94368.0,0.3608]
[1746411724096,0.2119301,94366.0,94365.0,0.0596]
[1746411725109,0.3319301,94366.0,94365.0,0.0596]
[1746411725711,0.3319301,94366.0,94365.0,0.2715323]
[1746411726517,0.12,94366.0,94365.0,0.2715323]
[1746411726713,0.12,94366.0,94365.0,0.6323323]
[1746411734119,0.12,94369.0,94368.0,0.2119256]
[1746411734706,0.12,94369.0,94368.0,0.2697256]
[1746411735810,0.12,94369.0,94365.0,0.3608]
[1746411736011,0.12,94369.0,94368.0,0.2718256]
[1746411739822,0.2119301,94366.0,94365.0,0.3608]
[1746411740020,0.2119266,94368.0,94366.0,0.21193]
[1746411740324,0.2119266,94368.0,94367.0,0.2119278]
[1746411740829,0.2119266,94368.0,94367.0,0.3296278]
[1746411741325,0.3319266,94368.0,94367.0,0.3296278]
[1746411746032,0.12,94368.0,94367.0,0.3296278]
[1746411748829,0.3319256,94368.0,94367.0,0.3296278]
[1746411750029,0.3319256,94368.0,94367.0,0.1177]
[1746411750329,0.3319256,94368.0,94367.0,0.3296278]
[1746411751929,0.2119331,94365.0,94363.0,0.3608]
[1746411752123,0.12,94365.0,94364.0,0.0564]
[1746411752323,0.12,94365.0,94364.0,0.3276346]
[1746411752722,0.3319323,94365.0,94364.0,0.1157]
[1746411753031,0.3319323,94365.0,94364.0,0.3276346]
[1746411753536,0.12,94365.0,94364.0,0.3276346]
[1746411755131,0.12,94365.0,94364.0,0.1157]
[1746411755332,0.12,94365.0,94364.0,0.3276346]
[1746411759534,0.3319323,94365.0,94364.0,0.1157]
[1746411760036,0.3931323,94365.0,94364.0,0.1157]
[1746411763334,0.2119346,94364.0,94363.0,0.3608]
[1746411763640,0.3179066,94364.0,94363.0,0.3608]
[1746411763840,0.3771066,94364.0,94363.0,0.3608]
[1746411764039,0.2119368,94363.0,94362.0,0.00158961]
[1746411764239,0.3179088,94363.0,94362.0,0.00158961]
[1746411764426,0.3771088,94363.0,94362.0,0.00158961]
[1746411765244,0.4971088,94363.0,94362.0,0.00158961]
[1746411769037,0.2119773,94345.0,94344.0,0.0599]
[1746411769236,0.5727773,94345.0,94344.0,0.0599]
[1746411770138,0.4808,94345.0,94322.0,0.00782487]
[1746411770344,0.4808,94345.0,94331.0,0.0599]
[1746411770345,0.0529951,94344.0,94331.0,0.0599]
[1746411770534,0.4808,94345.0,94336.0,0.052999]
[1746411770731,0.211993,94338.0,94337.0,0.1198]
[1746411770940,0.21981867,94338.0,94337.0,0.1198]
[1746411771141,0.33981867,94338.0,94337.0,0.1198]
[1746411774947,0.39481867,94338.0,94337.0,0.1198]
[1746411777947,0.12782567,94338.0,94337.0,0.3317952]
[1746411778143,0.12676586,94338.0,94337.0,0.5817952]
[1746411778450,0.03476586,94338.0,94337.0,0.34711373]
[1746411778646,0.03476586,94338.0,94337.0,1.84711373]
[1746411779150,0.2119561,94355.0,94354.0,0.211957]
[1746411779742,0.2119561,94355.0,94354.0,1.711957]
[1746411779942,0.2119483,94358.0,94355.0,0.2119547]
[1746411780150,0.34008996,94358.0,94355.0,0.2119547]
[1746411780450,0.34008996,94358.0,94356.0,0.2119514]
[1746411780853,0.3304503,94357.0,94356.0,0.2119514]
[1746411781150,0.4504503,94357.0,94356.0,0.2119514]
[1746411782648,0.4504503,94357.0,94356.0,0.2673514]
[1746411785261,0.2385,94357.0,94356.0,0.2673514]
[1746411785663,0.12,94357.0,94356.0,0.2673514]
[1746411786160,0.00814166,94358.0,94357.0,0.2119503]
[1746411786362,0.2119131,94374.0,94371.0,0.2119187]
[1746411786564,0.1204,94373.0,94372.0,0.0585]
[1746411787161,0.2404,94373.0,94372.0,0.0585]
[1746411787365,0.2404,94373.0,94372.0,0.04855705]
[1746411787862,0.2404,94373.0,94372.0,0.26047365]
[1746411788365,0.24841804,94373.0,94372.0,0.26047365]
[1746411788663,0.24841804,94373.0,94372.0,0.24986365]
[1746411788964,0.12801804,94373.0,94372.0,0.24986365]
[1746411789564,0.12801804,94373.0,94372.0,1.74986365]
[1746411792962,0.33993244,94373.0,94372.0,1.53794705]
[1746411793167,0.2119301,94366.0,94365.0,0.3608]
[1746411793962,0.2293817,94368.0,94352.0,1.5]
[1746411793963,0.1764,94368.0,94352.0,0.0575]
[1746411794164,0.2119462,94359.0,94355.0,0.211954]
[1746411794371,0.1208,94358.0,94352.0,0.0575]
[1746411794667,0.2119615,94352.0,94351.0,0.3608]
[1746411795255,0.3319615,94352.0,94351.0,0.3608]
[1746411795463,0.4527615,94352.0,94351.0,0.3608]
[1746411797070,0.211975,94346.0,94345.0,0.3608]
[1746411797969,0.1154,94347.0,94346.0,0.211975]
[1746411798170,0.1783,94347.0,94346.0,0.272375]
[1746411798770,0.3902728,94347.0,94346.0,0.0604]
[1746411799571,0.211975,94346.0,94345.0,0.3608]
[1746411800064,0.390775,94346.0,94345.0,0.3608]
[1746411800769,0.211991,94339.0,94336.0,0.21496342]
[1746411800969,0.3291935,94338.0,94336.0,0.00296742]
[1746411801172,0.4491935,94338.0,94336.0,0.00296742]
[1746411801771,0.2119952,94337.0,94336.0,0.00296742]
[1746411801967,0.07372918,94337.0,94336.0,0.00296742]
[1746411802271,0.1788,94337.0,94336.0,0.21496492]
[1746411802568,0.19396716,94337.0,94336.0,0.21496492]
[1746411802774,0.1788,94337.0,94336.0,0.21496492]
[1746411802965,0.3907952,94337.0,94336.0,0.00296742]
[1746411805276,0.59679921,94337.0,94336.0,0.00296742]
[1746411805575,0.64679921,94337.0,94336.0,0.00296742]
[1746411806776,1.00759921,94337.0,94336.0,0.00296742]
[1746411806975,0.2120065,94332.0,94331.0,0.00782413]
[1746411807275,0.3820065,94332.0,94331.0,0.00782413]
[1746411808069,0.4820065,94332.0,94331.0,0.00782413]
[1746411809274,0.3820065,94332.0,94331.0,0.00782413]
[1746411809775,0.4820065,94332.0,94331.0,0.00782413]
[1746411809973,0.17,94332.0,94331.0,0.00782413]
[1746411810178,0.12,94332.0,94331.0,0.21983283]
[1746411810469,0.12,94332.0,94331.0,0.00782413]
[1746411810670,0.12,94332.0,94331.0,0.21983283]
[1746411810976,7e-08,94332.0,94331.0,0.59125398]
[1746411811172,0.0529783,94374.0,94335.0,0.0529998]
[1746411811475,0.0568,94365.0,94361.0,0.2119403]
[1746411811673,0.0575,94364.0,94362.0,0.1151]
[1746411811880,0.2694363,94364.0,94362.0,0.1151]
[1746411812170,0.0554,94363.0,94362.0,0.1151]
[1746411812578,0.1129,94363.0,94362.0,0.1151]
[1746411813075,0.4448368,94363.0,94362.0,0.0591]
[1746411814378,0.4448368,94363.0,80230.0,0.06869376]
[1746411814379,0.5937,94363.0,94340.0,0.088392]
[1746411814565,0.2119615,94352.0,94351.0,0.0574]
[1746411815074,0.2119773,94345.0,94341.0,0.2119841]
[1746411815267,0.1753,94351.0,94343.0,0.0574]
[1746411815471,0.0589,94346.0,94345.0,0.2119758]
[1746411815671,0.0589,94346.0,94345.0,0.2693758]
[1746411815874,0.0589,94346.0,94345.0,0.3295758]
[1746411816176,0.1789,94346.0,94345.0,0.3295758]
[1746411818275,0.1789,94346.0,94345.0,0.0574]
[1746411818576,0.390875,94346.0,94345.0,0.0574]
[1746411819280,0.1789,94346.0,94345.0,0.0574]
[1746411820482,0.237,94346.0,94345.0,0.0574]
[1746411820976,0.448975,94346.0,94345.0,0.0574]
[1746411823482,0.2119885,94340.0,94339.0,0.00782346]
[1746411824079,0.3319885,94340.0,94339.0,0.00782346]
[1746411824277,0.3917885,94340.0,94339.0,0.00782346]
[1746411824982,0.4466885,94340.0,94339.0,0.00782346]
[1746411828377,0.12,94340.0,94339.0,0.00782346]
[1746411828583,0.12,94340.0,94339.0,0.21981416]
[1746411832488,0.12,94340.0,94339.0,0.32581416]
[1746411836082,0.12,94340.0,94339.0,0.21981416]
[1746411836579,0.12,94340.0,94339.0,0.2119907]
[1746411837084,0.12,94340.0,94339.0,0.3248907]
[1746411837784,0.3319885,94340.0,94339.0,0.0561]
[1746411838286,0.2119907,94339.0,94338.0,0.00782355]
[1746411838586,0.3285907,94339.0,94338.0,0.00782355]
[1746411839084,0.4485907,94339.0,94338.0,0.00782355]
[1746411842184,0.4985907,94339.0,94338.0,0.00782355]
[1746411843794,0.4485907,94339.0,94338.0,0.00782355]
[1746411843983,0.12,94339.0,94338.0,0.21981655]
[1746411847304,0.12,94339.0,94338.0,0.32581655]
[1746411848093,0.12,94339.0,94338.0,1.82581655]
[1746411852196,0.12,94339.0,94338.0,1.71981655]
[1746411854397,0.12,94339.0,94338.0,0.00782355]
[1746411854587,0.12,94339.0,94338.0,0.21981655]
[1746411855092,0.3319907,94339.0,94338.0,0.00782355]
[1746411855897,0.12,94339.0,94338.0,0.00782355]
[1746411856200,0.12,94339.0,94338.0,0.21981655]
[1746411856998,0.3319907,94339.0,94338.0,0.00782355]
[1746411857293,0.3319907,94339.0,94318.0,1.5530089]
[1746411857294,0.2120155,94328.0,94325.0,0.00106016]
[1746411857495,0.5728155,94328.0,94325.0,0.00106016]
[1746411858099,0.8071155,94328.0,94325.0,0.00106016]
[1746411862590,0.5951,94328.0,94325.0,0.00106016]
[1746411862792,0.8071155,94328.0,94325.0,0.00106016]
[1746411864195,0.8071155,94328.0,94326.0,0.0598]
[1746411864794,0.8071155,94328.0,94325.0,0.00106016]
[1746411866003,0.0530086,94320.0,94300.0,1.2362]
[1746411866201,0.2120469,94314.0,94307.0,0.0578]
[1746411866704,0.2120469,94314.0,94307.0,0.2698618]
[1746411866998,0.2120563,94310.0,94307.0,0.2698618]
[1746411867194,0.1164,94309.0,94307.0,0.2698618]
[1746411868305,0.2364,94309.0,94307.0,0.2698618]
[1746411869004,0.2364,94309.0,94308.0,0.2120604]
[1746411869404,0.24448714,94309.0,94308.0,0.2120604]
[1746411869603,0.45654534,94309.0,94307.0,0.0578]
[1746411870404,0.24448714,94309.0,94307.0,0.0578]
[1746411871807,0.45654554,94309.0,94307.0,0.0578]
[1746411873705,0.2120604,94308.0,94307.0,0.0578]
[1746411874200,0.2120604,94308.0,94302.0,0.3608]
[1746411874201,0.2120717,94303.0,94302.0,0.3608]
[1746411874406,0.2120852,94297.0,94295.0,0.0010605]
[1746411874595,0.2120874,94296.0,94295.0,0.0010605]
[1746411874796,0.3281874,94296.0,94295.0,0.0010605]
[1746411875113,0.4481874,94296.0,94295.0,0.0010605]
[1746411876400,0.5981874,94296.0,94295.0,0.0010605]
[1746411876601,0.7042354,94296.0,94295.0,0.0010605]
[1746411879308,0.6042354,94296.0,94295.0,0.0010605]
[1746411880209,0.4981874,94296.0,94295.0,0.0010605]
[1746411880707,0.5981874,94296.0,94295.0,0.0010605]
[1746411881507,0.2120942,94293.0,94292.0,0.00159079]
[1746411881808,0.5728942,94293.0,94292.0,0.00159079]
[1746411882000,0.6789462,94293.0,94292.0,0.00159079]
[1746411882201,0.90499579,94293.0,94292.0,0.00159079]
[1746411882701,0.2121189,94282.0,94281.0,0.3608]
[1746411883103,0.2121369,94274.0,94273.0,0.0549]
[1746411883907,0.3292369,94274.0,94273.0,0.0549]
[1746411884207,0.4492369,94274.0,94273.0,0.0549]
[1746411884718,0.46322206,94274.0,94273.0,0.0549]
[1746411887009,0.12,94274.0,94273.0,0.0549]
[1746411887210,0.12,94274.0,94273.0,0.6278392]
[1746411888096,0.212125,94280.0,94276.0,0.2121314]
[1746411888300,0.212125,94280.0,94277.0,0.1179]
[1746411888899,0.2121261,94279.0,94277.0,0.1179]
[1746411889105,0.3321261,94279.0,94277.0,0.1179]
[1746411891415,0.2727279,94278.0,94277.0,0.0592]
[1746411891614,0.3280279,94278.0,94277.0,0.0592]
[1746411892319,0.4480279,94278.0,94277.0,0.0592]
[1746411895605,0.2359,94278.0,94277.0,0.0592]
[1746411895807,0.12,94278.0,94277.0,0.2713302]
[1746411896313,0.12,94278.0,94277.0,0.0592]
[1746411896517,0.12,94278.0,94277.0,0.2713302]
[1746411896703,0.10846559,94278.0,94277.0,0.6273982]
[1746411896903,0.10846559,94278.0,94277.0,0.2713302]
[1746411897312,0.10846559,94278.0,94277.0,0.3301302]
[1746411898617,0.10846559,94278.0,94277.0,1.8301302]
[1746411898919,0.10846559,94278.0,94277.0,0.118]
[1746411899108,0.10846559,94278.0,94277.0,0.3301302]
[1746411899827,0.37949349,94278.0,94277.0,0.118]
[1746411900114,0.43619349,94278.0,94277.0,0.118]
[1746411902320,0.22406559,94278.0,94277.0,0.3301302]
[1746411904509,0.22406559,94278.0,94277.0,0.118]
[1746411904714,0.43619349,94278.0,94277.0,0.118]
[1746411905620,0.43619349,94278.0,94277.0,0.3301302]
[1746411906021,0.22406559,94278.0,94277.0,0.3301302]
[1746411907226,0.16736559,94278.0,94277.0,0.3301302]
[1746411907412,0.10846559,94278.0,94277.0,0.3301302]
[1746411911629,0.32059349,94278.0,94277.0,0.118]
[1746411911925,0.32059349,94278.0,94277.0,0.3301302]
[1746411912618,0.43789349,94278.0,94277.0,0.2713302]
[1746411913420,0.2121302,94277.0,94276.0,0.3608]
[1746411913826,0.3294302,94277.0,94276.0,0.3608]
[1746411914016,0.2121414,94272.0,94271.0,0.27578154]
[1746411914217,0.3321414,94272.0,94271.0,0.27578154]
[1746411914831,0.4468414,94272.0,94271.0,0.27578154]
[1746411916127,0.2121527,94267.0,94266.0,0.0559]
[1746411917226,0.3321527,94267.0,94266.0,0.0559]
[1746411918726,0.4455527,94267.0,94266.0,0.0559]
[1746411918932,0.2121549,94266.0,94265.0,0.00106083]
[1746411919121,0.4455549,94266.0,94265.0,0.00106083]
[1746411926324,0.8063549,94266.0,94265.0,0.00106083]
[1746411926525,0.2121729,94258.0,94257.0,0.00159139]
[1746411927128,0.3321729,94258.0,94257.0,0.00159139]
[1746411927331,0.4434729,94258.0,94257.0,0.00159139]
[1746411931132,0.45136836,94258.0,94257.0,0.00159139]
[1746411931332,0.23919546,94258.0,94257.0,0.00159139]
[1746411931533,0.12683463,94258.0,94257.0,0.93065859]
[1746411932123,0.00789546,94258.0,94257.0,2.55065859]
[1746411932334,0.2121467,94270.0,94269.0,0.2121482]
[1746411932528,0.2121467,94270.0,94269.0,0.5729482]
[1746411933426,0.2121467,94270.0,94269.0,0.6879482]
[1746411933635,0.22010416,94270.0,94269.0,0.6879482]
[1746411935943,0.00795746,94270.0,94269.0,0.6879482]
[1746411936132,0.272138,94274.0,94272.0,0.2121396]
[1746411936442,0.272138,94274.0,94273.0,0.112]
[1746411937139,0.392138,94274.0,94273.0,0.112]
[1746411937642,0.18,94274.0,94273.0,0.112]
[1746411938138,0.2721369,94274.0,94273.0,0.112]
[1746411938339,0.28026633,94274.0,94273.0,0.112]
[1746411938540,0.28026633,94274.0,94273.0,0.3241392]
[1746411939143,0.18812943,94274.0,94273.0,0.3241392]
[1746411940043,0.40026633,94274.0,94273.0,0.0575]
[1746411940246,0.0530357,94272.0,94266.0,0.2121534]
[1746411940540,0.212152,94268.0,94266.0,0.2121535]
[1746411940741,0.3835527,94267.0,94266.0,0.2121535]